bitfinex-derivatives/quotes_ETHF0:USTF0_20250614
["timestamp","ask_amount","ask_price","bid_price","bid_amount"]
[1749916239269,0.79456,2516.0,2515.9,33.9769]
[1749916239763,0.6857,2516.1,2515.9,33.9769]
[1749916239966,3.2078,2516.2,2515.9,34.77146]
[1749916240168,3.2078,2516.2,2515.9,33.9769]
[1749916240169,0.79454,2516.0,2515.9,33.9769]
[1749916240362,0.79454,2516.0,2515.9,32.61]
[1749916240562,0.79457,2515.9,2515.8,0.00596303]
[1749916240761,0.79457,2515.9,2515.8,7.04596303]
[1749916240970,0.79457,2515.9,2515.8,32.61596303]
[1749916242069,0.79457,2515.9,2515.8,0.00596303]
[1749916242271,4.00237,2515.9,2515.8,0.00596303]
[1749916242664,5.26717,2515.9,2515.8,0.00596303]
[1749916243268,4.00237,2515.9,2515.8,0.00596303]
[1749916243961,0.79455,2516.0,2515.9,0.79454]
[1749916244164,3.2078,2516.2,2516.0,0.7945]
[1749916244165,0.79452,2516.1,2516.0,0.7945]
[1749916244461,0.79455,2516.0,2515.9,0.79454]
[1749916245364,4.00228,2516.2,2516.1,0.7945]
[1749916245771,3.2078,2516.2,2516.1,0.7945]
[1749916245971,3.8935,2516.5,2516.2,0.79446]
[1749916246168,4.68789,2516.5,2516.4,0.79441]
[1749916246365,3.8935,2516.5,2516.3,25.562]
[1749916246566,3.2078,2516.5,2516.3,26.35642]
[1749916246768,3.2078,2516.5,2516.4,2.05491]
[1749916247369,0.79433,2516.7,2516.5,0.79436]
[1749916247574,3.8925,2516.9,2516.6,2.05483]
[1749916247575,0.79431,2516.8,2516.6,2.05483]
[1749916247761,0.79432,2516.7,2516.6,1.2605]
[1749916247962,0.79432,2516.7,2516.6,33.8605]
[1749916248176,3.2078,2516.9,2516.6,33.8575]
[1749916248369,0.7943,2516.8,2516.7,40.8]
[1749916248569,3.2078,2516.9,2516.6,33.8575]
[1749916248868,3.2078,2516.9,2516.8,0.79428]
[1749916249174,3.2078,2517.3,2516.7,4.5906]
[1749916249367,0.7942,2517.1,2516.8,40.8]
[1749916249676,0.79422,2517.0,2516.9,33.9788]
[1749916250873,0.79421,2517.1,2516.9,34.77305]
[1749916251073,0.79422,2517.0,2516.9,34.77305]
[1749916251273,4.07003268,2517.3,2517.0,0.79422]
[1749916251469,3.27589268,2517.3,2517.1,1.3268]
[1749916251773,0.06809268,2517.3,2517.2,25.553]
[1749916251965,4.00185,2517.6,2517.3,0.79411]
[1749916252170,0.79406,2517.5,2517.4,8.3638]
[1749916252375,0.79406,2517.5,2517.4,1.3268]
[1749916252578,3.2078,2517.6,2517.2,0.00596303]
[1749916252579,0.79413,2517.3,2517.2,25.55796303]
[1749916252779,0.79413,2517.3,2517.2,0.00596303]
[1749916253078,4.00193,2517.3,2517.2,32.59496303]
[1749916253574,0.79413,2517.3,2517.2,32.59496303]
[1749916254271,4.00193,2517.3,2517.2,0.00596303]
[1749916254479,9.00193,2517.3,2517.2,0.00596303]
[1749916254973,10.12545205,2517.3,2517.2,0.00596303]
[1749916255174,0.79431,2516.7,2516.6,24.035]
[1749916255380,0.79431,2516.8,2516.6,57.41233]
[1749916255572,0.79431,2516.7,2516.6,57.41233]
[1749916255878,3.2078,2516.9,2516.6,57.40433]
[1749916256074,3.2078,2516.9,2516.6,24.035]
[1749916256386,3.21372265,2517.0,2516.6,24.035]
[1749916256587,0.79432,2516.7,2516.6,24.035]
[1749916256774,0.79435,2516.6,2516.5,0.00596303]
[1749916258968,0.79435,2516.6,2516.5,0.80034303]
[1749916259180,0.79435,2516.6,2516.5,0.00596303]
[1749916259380,3.2078,2516.7,2516.5,0.80031303]
[1749916259682,0.79435,2516.6,2516.5,0.00596303]
[1749916261376,1.92136089,2516.6,2516.5,0.00596303]
[1749916262477,1.12701089,2516.6,2516.5,0.00596303]
[1749916262784,0.86242268,2516.7,2516.5,0.00596303]
[1749916262984,0.86242268,2516.7,2516.6,33.36335]
[1749916263175,0.79431,2516.8,2516.6,33.36335]
[1749916263480,0.80016265,2517.0,2516.8,0.79426]
[1749916263682,0.80016265,2517.0,2516.9,1.3261]
[1749916263883,0.79429,2516.8,2516.7,0.79431]
[1749916264085,0.79426,2516.9,2516.8,0.79427]
[1749916264383,0.00592265,2517.0,2516.7,2.12039]
[1749916264684,0.79428,2516.8,2516.7,2.12041]
[1749916264892,0.79427,2516.9,2516.7,1.3261]
[1749916265090,0.79427,2516.9,2516.8,0.79428]
[1749916265384,0.79428,2516.8,2516.7,2.12039]
[1749916265585,0.79427,2516.9,2516.8,0.79428]
[1749916265788,0.79425,2516.9,2516.7,1.3261]
[1749916265978,0.00592265,2517.0,2516.7,1.3261]
[1749916266180,0.00592265,2517.0,2516.7,2.1204]
[1749916266388,0.79428,2516.8,2516.7,1.3261]
[1749916266587,0.00592265,2517.0,2516.7,2.12042]
[1749916266889,0.00592265,2517.0,2516.7,1.3261]
[1749916267085,0.79428,2516.8,2516.7,2.12041]
[1749916267690,0.79427,2516.9,2516.8,0.79428]
[1749916267887,0.00592265,2517.0,2516.9,0.79425]
[1749916268085,0.00592265,2517.0,2516.9,26.33225]
[1749916268287,0.06809268,2517.3,2517.2,0.79416]
[1749916268583,0.86222268,2517.3,2517.2,25.538]
[1749916269278,0.79416,2517.2,2517.1,0.6259]
[1749916269486,4.00196,2517.2,2517.1,33.1889]
[1749916269881,4.00196,2517.2,2517.1,33.35719]
[1749916270084,3.2078,2517.2,2517.1,33.35719]
[1749916270285,0.79411,2517.4,2517.3,0.79413]
[1749916270584,0.79413,2517.3,2517.2,0.79414]
[1749916270886,0.79413,2517.3,2517.2,1.3546]
[1749916271289,0.79416,2517.2,2517.1,32.563]
[1749916271486,3.2078,2517.5,2517.1,32.563]
[1749916271693,3.2078,2517.8,2517.1,33.9176]
[1749916271883,0.79404,2517.6,2517.5,0.79405]
[1749916272085,0.79404,2517.6,2517.5,32.559]
[1749916272494,3.2078,2517.8,2517.7,0.794]
[1749916272791,3.2078,2517.8,2517.6,1.42802]
[1749916272983,3.2078,2517.8,2517.7,0.794]
[1749916273401,4.00177,2517.8,2517.7,0.794]
[1749916273785,4.00179,2517.8,2517.6,1.937]
[1749916273985,3.2078,2517.8,2517.7,0.794]
[1749916275093,3.2078,2518.1,2518.0,0.7939]
[1749916275396,4.33781359,2518.1,2518.0,26.3229]
[1749916275592,3.2078,2518.1,2518.0,25.529]
[1749916275785,4.00167,2518.1,2518.0,25.529]
[1749916275987,0.79394,2517.9,2517.8,0.00596303]
[1749916276296,0.79394,2517.9,2517.8,32.55996303]
[1749916276498,3.2078,2518.1,2517.8,33.35393303]
[1749916276690,4.00169,2518.1,2517.9,0.79393]
[1749916276994,3.2078,2518.1,2518.0,0.79391]
[1749916277195,3.2078,2518.1,2518.0,1.46211]
[1749916277396,4.00167,2518.1,2518.0,0.6682]
[1749916277800,4.00167,2518.1,2518.0,2.0498]
[1749916277993,0.79394,2517.9,2517.8,0.00596303]
[1749916279392,0.86203268,2517.9,2517.8,0.00596303]
[1749916280401,0.79394,2517.9,2517.8,0.00596303]
[1749916281497,0.86203268,2517.9,2517.8,0.00596303]
[1749916281900,1.98962872,2517.9,2517.8,0.00596303]
[1749916282200,0.79407,2517.4,2517.3,7.025]
[1749916282407,0.79407,2517.4,2517.2,4.5431]
[1749916282408,0.7941,2517.4,2517.2,11.5681]
[1749916282697,0.7941,2517.4,2517.3,1.3353]
[1749916282893,0.7941,2517.4,2517.3,26.8553]
[1749916283404,0.79411,2517.3,2517.2,10.2328]
[1749916283606,0.79411,2517.3,2517.2,7.025]
[1749916283799,0.79414,2517.2,2517.1,0.00596303]
[1749916284099,0.79414,2517.2,2517.1,1.34126303]
[1749916284401,0.79414,2517.2,2517.1,26.86126303]
[1749916284802,0.79414,2517.2,2517.1,0.00596303]
[1749916285401,4.00194,2517.2,2517.1,0.00596303]
[1749916285794,5.12954605,2517.2,2517.1,0.00596303]
[1749916287603,5.12975458,2517.2,2517.1,0.00596303]
[1749916287799,0.79414,2517.2,2517.1,0.00596303]
[1749916288205,0.79414,2517.2,2517.1,1.25736303]
[1749916289501,0.79414,2517.2,2517.1,0.00596303]
[1749916289799,1.43674,2517.2,2517.1,0.00596303]
[1749916290000,0.79412,2517.3,2517.1,0.80012303]
[1749916290200,4.00777303,2517.6,2517.1,32.53796303]
[1749916290401,0.79404,2517.5,2517.3,0.79411]
[1749916290600,3.21376303,2517.6,2517.2,1.2514]
[1749916290810,0.79414,2517.2,2517.1,0.00596303]
[1749916293909,2.12354,2517.2,2517.1,0.00596303]
[1749916295806,2.19163268,2517.2,2517.1,0.00596303]
[1749916296203,0.79426,2516.8,2516.7,3.2078]
[1749916298509,0.6305,2516.9,2516.5,0.00596303]
[1749916298806,0.79433,2516.6,2516.5,0.00596303]
[1749916299209,2.17293,2516.6,2516.5,0.00596303]
[1749916301610,3.30103332,2516.6,2516.5,0.00596303]
[1749916301913,3.30103332,2516.6,2515.9,7.015]
[1749916301914,0.79451,2516.0,2515.9,7.015]
[1749916302414,0.79458,2515.8,2515.7,5.2122]
[1749916302610,0.6497,2516.1,2515.7,5.2122]
[1749916302807,0.79454,2516.0,2515.8,1.3609]
[1749916303009,0.79455,2515.9,2515.8,1.3609]
[1749916303506,0.79458,2515.8,2515.7,10.8673]
[1749916304512,0.79458,2515.8,2515.7,3.2078]
[1749916305899,0.79461,2515.7,2515.6,0.00596303]
[1749916307809,0.79477,2515.2,2514.2,1.98765]
[1749916308109,1.98668,2515.5,2514.8,3.2078]
[1749916308306,0.6655,2515.4,2514.9,1.9966]
[1749916308708,0.67146303,2515.4,2514.9,2.00256303]
[1749916308909,0.79483,2515.0,2514.9,2.00256303]
[1749916310008,0.79483,2515.0,2514.9,0.00596303]
[1749916311110,4.00263,2515.0,2514.9,0.00596303]
[1749916312217,0.79483,2515.0,2514.9,0.00596303]
[1749916313111,4.00263,2515.0,2514.9,0.00596303]
[1749916314817,0.79499,2514.5,2514.4,3.2078]
[1749916316616,3.92822,2514.9,2514.4,3.2078]
[1749916316812,3.92822,2514.9,2514.5,1.3412]
[1749916317013,0.79496,2514.6,2514.5,1.3412]
[1749916317317,0.79499,2514.5,2514.4,3.2078]
[1749916317615,0.6788,2514.7,2514.4,3.2078]
[1749916317817,5.19466,2515.3,2514.4,3.2078]
[1749916318018,0.79479,2515.2,2514.9,0.79484]
[1749916318219,0.7948,2515.1,2515.0,2.7196]
[1749916318518,0.79478,2515.2,2515.0,2.7196]
[1749916318716,0.7948,2515.1,2515.0,2.7196]
[1749916321012,0.00596303,2515.4,2515.0,2.7196]
[1749916321320,0.80069303,2515.4,2515.1,0.79478]
[1749916321515,0.80068303,2515.4,2515.2,1.3092]
[1749916321921,0.79473,2515.3,2515.2,1.3092]
[1749916322123,3.2078,2515.3,2515.0,0.6802]
[1749916322423,0.00596303,2515.4,2515.3,0.79473]
[1749916322611,0.00596303,2515.4,2515.3,2.10393]
[1749916324817,0.00596303,2515.4,2515.3,7.10393]
[1749916325624,4.00237,2515.9,2515.3,6.3092]
[1749916325824,0.6648,2516.3,2515.8,3.2078]
[1749916326128,0.79443,2516.3,2516.0,0.7945]
[1749916326424,0.79443,2516.3,2516.1,2.0037]
[1749916326626,0.7944,2516.4,2516.2,1.3328]
[1749916326819,0.00596303,2516.5,2516.2,2.12723]
[1749916327019,0.00596303,2516.5,2516.2,1.3328]
[1749916327226,0.79445,2516.2,2516.1,3.8787]
[1749916327427,0.79445,2516.2,2516.1,0.6709]
[1749916328518,0.79445,2516.2,2516.1,1.9588]
[1749916328925,0.79448,2516.1,2516.0,3.2078]
[1749916329125,0.79448,2516.1,2516.0,4.4957]
[1749916330229,1.98601,2516.4,2515.9,0.69096303]
[1749916330429,0.79451,2516.0,2515.9,0.69096303]
[1749916332930,0.00596303,2516.5,2515.9,3.89876303]
[1749916333122,0.00596303,2516.5,2516.1,0.79446]
[1749916333329,0.79443,2516.3,2516.2,1.3562]
[1749916333725,0.79451,2516.0,2515.9,3.89876303]
[1749916333921,0.79451,2516.0,2515.9,33.19796303]
[1749916334527,0.79451,2516.0,2515.9,0.00596303]
[1749916335231,2.08051,2516.0,2515.9,0.00596303]
[1749916338630,2.08051,2516.0,2515.9,3.03e-06]
[1749916338930,0.7947,2515.4,2515.3,7.005]
[1749916339822,1.98633,2516.0,2515.3,7.005]
[1749916340030,2.66094,2516.0,2515.4,4.5337]
[1749916340229,2.66094,2516.0,2515.5,0.79465]
[1749916340437,0.6498,2516.1,2515.7,4.00239]
[1749916340637,0.79454,2515.9,2515.8,1.3259]
[1749916341534,0.6498,2516.1,2515.8,1.3259]
[1749916341730,5.19389,2516.3,2515.8,1.3259]
[1749916342124,0.79454,2515.9,2515.8,1.3259]
[1749916343940,0.79452,2516.0,2515.8,1.3259]
[1749916344239,5.19389,2516.3,2515.8,1.3259]
[1749916344431,0.79454,2515.9,2515.8,1.3259]
[1749916344630,0.79454,2515.9,2515.8,33.8249]
[1749916345434,0.79458,2515.8,2515.7,3.2078]
[1749916345640,0.79461,2515.7,2515.6,7.006]
[1749916345838,0.79464,2515.6,2515.5,1.3162]
[1749916346039,0.79467,2515.5,2515.4,3.2078]
[1749916350541,0.6687,2516.1,2515.6,0.79462]
[1749916350736,0.79462,2515.7,2515.5,26.1585]
[1749916350946,0.79458,2515.8,2515.6,6.992]
[1749916351242,0.6687,2516.1,2515.6,6.992]
[1749916351243,0.79461,2515.7,2515.6,6.992]
[1749916352243,1.98615,2516.2,2515.6,11.992]
[1749916352448,0.79458,2515.8,2515.7,3.867]
[1749916352746,0.79458,2515.8,2515.7,36.347]
[1749916352946,0.79458,2515.8,2515.7,77.147]
[1749916353146,0.79458,2515.8,2515.7,36.347]
[1749916354545,0.79458,2515.8,2515.7,0.6592]
[1749916354746,0.79464,2515.6,2515.5,0.6685]
[1749916356648,0.79464,2515.6,2515.5,1.9813]
[1749916357648,0.79467,2515.5,2515.4,35.6838]
[1749916357849,5.19406,2516.1,2515.4,37.0626]
[1749916358053,0.7946,2515.8,2515.7,3.2078]
[1749916358447,0.79467,2515.5,2515.4,3.2078]
[1749916358748,0.79467,2515.5,2515.1,34.24776303]
[1749916358749,0.79477,2515.2,2515.1,34.24776303]
[1749916358950,0.79477,2515.2,2515.1,59.73076303]
[1749916359650,0.79477,2515.2,2515.1,34.24776303]
[1749916359850,0.79477,2515.2,2515.1,59.72976303]
[1749916360451,0.79477,2515.2,2515.1,35.68776303]
[1749916361455,0.79477,2515.2,2515.1,32.47896303]
[1749916362258,0.6924,2515.4,2515.1,33.27374303]
[1749916362457,0.79474,2515.3,2515.2,1.2566]
[1749916365152,0.79469,2515.5,2515.2,1.2566]
[1749916365356,3.8714,2515.8,2515.4,0.7947]
[1749916365659,1.13267484,2515.7,2515.5,26.7867]
[1749916365858,0.79464,2515.6,2515.5,26.7867]
[1749916366061,0.79464,2515.6,2515.5,27.4525]
[1749916366357,0.79461,2515.7,2515.5,27.4525]
[1749916366658,0.79461,2515.7,2515.6,4.00243]
[1749916366956,0.79461,2515.7,2515.6,3.2078]
[1749916368657,0.79461,2515.7,2515.6,4.00244]
[1749916369055,0.79461,2515.7,2515.6,3.2078]
[1749916369363,0.79461,2515.7,2515.6,4.00244]
[1749916369762,0.79461,2515.7,2515.6,3.2078]
[1749916370964,0.79464,2515.6,2515.5,35.24015]
[1749916371962,0.79464,2515.6,2515.5,34.4455]
[1749916372764,0.79464,2515.6,2515.5,35.24017]
[1749916373563,0.7947,2515.4,2515.3,3.2078]
[1749916373753,0.7947,2515.5,2515.3,30.15272]
[1749916373955,0.7947,2515.4,2515.3,31.42162]
[1749916374565,0.7947,2515.4,2515.3,30.6269]
[1749916374953,0.7947,2515.4,2515.3,3.886]
[1749916375153,0.79477,2515.2,2515.1,0.00596303]
[1749916375353,0.79477,2515.2,2515.1,25.47596303]
[1749916375662,0.79477,2515.2,2515.1,25.47496303]
[1749916379266,0.79477,2515.2,2515.1,0.00596303]
[1749916379568,0.79477,2515.2,2515.1,25.47396303]
[1749916380366,0.6909,2515.6,2515.5,0.79467]
[1749916380367,1.48556,2515.6,2515.5,0.79467]
[1749916380565,0.79464,2515.7,2515.6,0.79462]
[1749916380764,1.98638,2516.0,2515.5,27.45466]
[1749916380765,0.79459,2515.8,2515.5,27.45466]
[1749916380972,0.79459,2515.8,2515.7,4.00238]
[1749916381173,0.79459,2515.8,2515.7,29.46938]
[1749916381474,0.79459,2515.8,2515.7,25.467]
[1749916381670,0.79459,2515.8,2515.7,26.26161]
[1749916381972,0.79456,2515.9,2515.8,0.79456]
[1749916382176,0.79456,2515.9,2515.8,2.74256]
[1749916382874,0.79448,2516.2,2516.1,0.79446]
[1749916383276,0.7945,2516.1,2516.0,0.7945]
[1749916383465,0.7945,2516.1,2516.0,2.089]
[1749916384066,0.79452,2516.0,2515.9,28.6728]
[1749916384479,0.79452,2516.0,2515.9,30.76182]
[1749916385373,0.79452,2516.0,2515.9,29.9673]
[1749916385977,0.79452,2516.0,2515.9,28.6728]
[1749916386379,0.79452,2516.0,2515.9,29.46735]
[1749916386677,0.79448,2516.2,2515.9,29.9325]
[1749916386972,1.3685,2516.4,2516.0,0.7945]
[1749916387178,0.79445,2516.2,2516.1,26.7177]
[1749916388277,0.79445,2516.2,2516.1,25.458]
[1749916388778,0.79445,2516.2,2516.1,26.25246]
[1749916389374,0.79445,2516.2,2516.1,25.458]
[1749916389779,0.00596303,2516.5,2516.3,0.79441]
[1749916389977,0.79439,2516.4,2516.3,25.454]
[1749916391079,0.79439,2516.4,2516.3,28.27342]
[1749916391276,0.79439,2516.4,2516.3,27.479]
[1749916392273,0.79439,2516.4,2516.3,30.6868]
[1749916394481,0.79439,2516.4,2516.3,31.48122]
[1749916394684,0.79431,2516.7,2516.6,0.79433]
[1749916394984,0.79431,2516.7,2516.6,28.6558]
[1749916395178,0.687,2517.0,2516.7,0.79427]
[1749916395383,0.79423,2516.9,2516.8,25.446]
[1749916399884,0.79423,2516.9,2516.8,26.24026]
[1749916400080,0.79423,2516.9,2516.8,25.446]
[1749916400277,0.79423,2516.9,2516.8,26.92246]
[1749916400483,0.79423,2516.9,2516.8,28.29786]
[1749916400784,0.79423,2516.9,2516.8,28.29785]
[1749916401281,0.79423,2516.9,2516.8,27.5036]
[1749916401587,0.79423,2516.9,2516.8,28.29786]
[1749916401782,0.00596303,2517.1,2517.0,0.7942]
[1749916401986,0.00596303,2517.1,2517.0,33.2052]
[1749916402189,0.80013303,2517.1,2517.0,32.411]
[1749916402885,0.00596303,2517.1,2517.0,33.2052]
[1749916403087,0.80013303,2517.1,2517.0,32.411]
[1749916403276,0.80013303,2517.1,2517.0,34.5894]
[1749916403482,0.80013303,2517.1,2517.0,33.7952]
[1749916403878,0.80013303,2517.1,2517.0,34.5894]
[1749916404689,0.00596303,2517.1,2517.0,34.5894]
[1749916404890,0.80013303,2517.1,2517.0,34.5894]
[1749916405083,0.00596303,2517.1,2517.0,34.5894]
[1749916406384,0.7942,2517.0,2516.9,3.2078]
[1749916406580,0.7942,2517.0,2516.9,28.6368]
[1749916407989,0.79423,2516.9,2516.8,6.974]
[1749916408188,1.47113,2516.9,2516.8,32.399]
[1749916408693,0.7943,2516.7,2516.6,3.21376303]
[1749916408882,0.7943,2516.7,2516.6,28.63776303]
[1749916409081,0.7943,2516.7,2516.6,3.21376303]
[1749916409286,0.7943,2516.7,2516.6,28.63776303]
[1749916409587,4.01601303,2517.1,2516.6,28.63776303]
[1749916409588,0.66056303,2517.1,2516.6,28.63776303]
[1749916409787,0.79422,2517.0,2516.9,3.2078]
[1749916410087,0.79422,2517.0,2516.9,29.42503]
[1749916410387,0.79422,2517.0,2516.9,29.9047]
[1749916414098,0.79422,2517.0,2516.9,28.6308]
[1749916414391,0.79422,2517.0,2516.9,25.423]
[1749916414897,1.43342,2517.0,2516.9,25.423]
[1749916417995,0.7942,2517.0,2516.9,28.6308]
[1749916418196,0.7942,2517.0,2516.9,30.0182]
[1749916418696,0.7942,2517.0,2516.9,30.81243]
[1749916420300,0.80015303,2517.1,2517.0,0.7942]
[1749916420599,0.80015303,2517.1,2517.0,2.1597]
[1749916421207,0.80015303,2517.1,2517.0,1.3655]
[1749916421607,0.80015303,2517.1,2517.0,2.1597]
[1749916421999,0.00596303,2517.1,2517.0,2.1597]
[1749916424407,0.00596303,2517.1,2517.0,42.9597]
[1749916425807,0.80013303,2517.1,2517.0,42.9597]
[1749916426110,0.80013303,2517.1,2517.0,33.7235]
[1749916426312,0.00596303,2517.1,2517.0,34.5177]
[1749916426703,0.80013303,2517.1,2517.0,2.1597]
[1749916427008,0.7942,2517.0,2516.9,10.95701]
[1749916427207,0.00596303,2517.1,2517.0,0.7942]
[1749916427403,4.5392,2518.0,2517.9,0.79392]
[1749916427607,1.98443,2518.4,2517.9,26.19492]
[1749916427608,0.6766,2518.1,2517.9,26.19492]
[1749916427802,0.79392,2517.9,2517.8,0.6433]
[1749916428002,0.79396,2517.8,2517.6,0.79399]
[1749916428209,0.79396,2517.8,2517.7,25.4]
[1749916429310,0.79398,2517.7,2517.6,7.74899]
[1749916429506,0.79396,2517.8,2517.6,32.354]
[1749916429706,0.00596303,2518.0,2517.7,0.79397]
[1749916430003,0.79394,2517.9,2517.8,25.399]
[1749916430706,0.00596303,2518.0,2517.8,26.19294]
[1749916430707,0.79987303,2518.0,2517.8,26.19294]
[1749916430905,0.79392,2517.9,2517.8,25.399]
[1749916431620,0.79392,2517.9,2517.8,26.19295]
[1749916432112,0.79988303,2518.0,2517.8,26.19295]
[1749916432312,0.79988303,2518.0,2517.9,0.79392]
[1749916432509,0.79392,2517.9,2517.8,26.19294]
[1749916432708,0.79986303,2518.0,2517.9,0.79392]
[1749916432910,0.79392,2517.9,2517.8,26.19293]
[1749916435516,0.00596303,2518.0,2517.9,0.79392]
[1749916435708,0.00596303,2518.0,2517.8,25.399]
[1749916435910,0.79392,2517.9,2517.8,26.19295]
[1749916436713,0.79392,2517.9,2517.8,25.399]
[1749916437116,0.79392,2517.9,2517.8,26.19295]
[1749916437714,0.79392,2517.9,2517.8,25.399]
[1749916438708,0.79398,2517.7,2517.6,4.00179]
[1749916438913,0.79398,2517.7,2517.6,36.31979]
[1749916439313,0.79397,2517.8,2517.7,0.79394]
[1749916439812,0.00596303,2518.0,2517.9,0.79392]
[1749916440022,0.79985303,2518.0,2517.9,25.383]
[1749916440213,0.79985303,2518.0,2517.9,26.17692]
[1749916440413,0.79985303,2518.0,2517.9,25.383]
[1749916440924,0.79398,2517.7,2517.6,4.00181]
[1749916441119,0.79398,2517.7,2517.6,36.31481]
[1749916442020,0.79398,2517.7,2517.6,35.5198]
[1749916443122,0.79398,2517.7,2517.6,3.2078]
[1749916443919,0.79401,2517.6,2517.5,0.00596303]
[1749916444120,2.13221,2517.6,2517.5,0.00596303]
[1749916445315,8.48561,2517.6,2517.5,0.00596303]
[1749916445821,0.79417,2517.1,2517.0,0.79419]
[1749916446020,0.79417,2517.1,2517.0,26.16819]
[1749916446325,0.79417,2517.2,2517.1,0.79416]
[1749916446722,0.79417,2517.1,2517.0,26.16818]
[1749916446926,0.79416,2517.2,2517.1,0.79417]
[1749916447124,0.79417,2517.2,2517.0,26.16818]
[1749916447320,0.79417,2517.2,2517.0,25.374]
[1749916447524,0.79417,2517.2,2517.1,0.79417]
[1749916448127,1.2613,2517.4,2517.1,0.79417]
[1749916448520,0.79413,2517.3,2517.2,0.79414]
[1749916448731,1.2613,2517.4,2517.1,0.79415]
[1749916448924,0.79414,2517.2,2517.1,0.79415]
[1749916449226,0.79417,2517.1,2517.0,26.16819]
[1749916449424,1.2613,2517.4,2517.0,25.374]
[1749916449629,0.79417,2517.2,2517.1,0.79417]
[1749916449822,0.79417,2517.1,2517.0,26.16818]
[1749916450127,0.79417,2517.1,2517.0,26.16518]
[1749916450725,1.2613,2517.4,2517.0,25.371]
[1749916450925,1.2613,2517.4,2517.0,26.16518]
[1749916451526,1.2613,2517.4,2517.0,25.371]
[1749916451725,0.79417,2517.1,2517.0,26.16519]
[1749916452419,0.79417,2517.1,2517.0,26.16518]
[1749916453724,0.79416,2517.2,2517.0,25.371]
[1749916453925,0.79416,2517.2,2517.0,26.16518]
[1749916454229,0.79416,2517.2,2517.1,0.79417]
[1749916457430,0.79417,2517.1,2517.0,26.16519]
[1749916457731,5.19295,2517.5,2516.9,28.5698]
[1749916457732,0.7942,2517.0,2516.9,28.5698]
[1749916457920,1.4345,2517.0,2516.9,28.5698]
[1749916458631,1.4345,2517.0,2516.9,29.36404]
[1749916459032,1.4345,2517.0,2516.9,28.5698]
[1749916460534,0.7942,2517.0,2516.9,28.5698]
[1749916460737,0.7942,2517.0,2516.9,29.8343]
[1749916461732,0.7942,2517.0,2516.9,28.5698]
[1749916463035,0.7942,2517.0,2516.9,28.5648]
[1749916463336,0.7942,2517.0,2516.9,28.5638]
[1749916463740,0.79419,2517.1,2517.0,0.79418]
[1749916464031,0.79415,2517.3,2517.2,0.79412]
[1749916464237,0.79415,2517.3,2517.2,29.35792]
[1749916464532,0.79415,2517.3,2517.2,28.5638]
[1749916464731,0.79415,2517.3,2517.2,29.8929]
[1749916466334,0.79409,2517.4,2517.2,29.8929]
[1749916466639,0.79409,2517.4,2517.3,2.12319]
[1749916466936,0.79409,2517.4,2517.3,1.3291]
[1749916469039,0.79411,2517.3,2517.2,25.356]
[1749916469441,0.79414,2517.2,2517.1,1.42656]
[1749916469632,0.79414,2517.2,2517.1,35.06406]
[1749916470341,0.86223268,2517.2,2517.1,35.06406]
[1749916471339,0.79414,2517.2,2517.1,35.06406]
[1749916472041,1.98505,2517.6,2517.1,34.2699]
[1749916472235,0.79407,2517.5,2517.4,0.79407]
[1749916472538,0.79405,2517.5,2517.4,25.344]
[1749916472936,3.2078,2517.8,2517.4,25.344]
[1749916473137,0.79401,2517.6,2517.5,1.9348]
[1749916476534,1.98489,2517.8,2517.2,44.0078]
[1749916476839,0.79411,2517.3,2517.2,32.9103]
[1749916477836,0.79411,2517.3,2517.2,25.9993]
[1749916478237,0.79411,2517.3,2517.0,8.35509]
[1749916478238,0.7942,2517.0,2516.9,4.5661]
[1749916478438,0.7942,2517.0,2516.9,29.9011]
[1749916482743,0.79424,2516.9,2516.8,0.00596303]
[1749916482941,2.56893071,2516.9,2516.8,0.00596303]
[1749916483340,10.77673071,2516.9,2516.8,3.03e-06]
[1749916484039,12.14323071,2516.9,2516.8,3.03e-06]
[1749916488046,5.77673071,2516.9,2516.8,3.03e-06]
[1749916488544,4.64224,2516.9,2516.8,3.03e-06]
[1749916489246,0.79424,2516.9,2516.8,3.03e-06]
[1749916495349,0.79424,2516.9,2516.8,2.12374303]
[1749916495558,0.79424,2516.9,2516.8,5.33154303]
[1749916495856,0.79424,2516.9,2516.8,4.53730303]
[1749916497552,0.86233268,2516.9,2516.8,4.53730303]
[1749916497958,0.86233268,2516.9,2516.8,1.32950303]
[1749916500654,0.86233268,2516.9,2516.8,5.33157303]
[1749916500856,0.06809268,2516.9,2516.8,5.33157303]
[1749916501455,0.6853,2517.4,2517.3,0.79411]
[1749916501755,3.2078,2517.5,2517.2,0.79412]
[1749916501756,0.79413,2517.3,2517.2,0.79412]
[1749916502455,3.2078,2517.5,2517.4,0.79408]
[1749916502764,0.79405,2517.5,2517.4,0.79405]
[1749916503153,0.79408,2517.4,2517.3,1.3315]
[1749916503358,0.79407,2517.5,2517.4,0.79407]
[1749916503560,3.96978,2517.8,2517.2,3.2078]
[1749916503856,0.86233268,2516.9,2516.7,4.00209]
[1749916504061,0.86233268,2516.9,2516.8,1.30610303]
[1749916505759,0.86233268,2516.9,2516.8,2.10037303]
[1749916505960,0.86233268,2516.9,2516.8,1.30610303]
[1749916507156,0.86233268,2516.9,2516.8,2.10037303]
[1749916507867,0.06809268,2516.9,2516.8,2.10037303]
[1749916508768,0.79409,2517.4,2517.3,0.79411]
[1749916508962,3.8721,2517.6,2516.9,1.98556]
[1749916508963,3.8721,2517.6,2517.1,32.186]
[1749916509156,0.79407,2517.5,2517.2,1.9849]
[1749916509357,0.79407,2517.5,2517.4,0.79408]
[1749916509851,0.79403,2517.6,2517.5,0.79404]